bitfinex-derivatives/quotes_BNBF0:USTF0_20250221
["timestamp","ask_amount","ask_price","bid_price","bid_amount"]
[1740118743337,1.52918493,653.2,652.16,2.18035934]
[1740118743536,1.52918493,653.2,652.17,2.18035934]
[1740118743734,1.52918493,653.2,652.18,2.18035934]
[1740118743936,1.52918493,653.2,652.19,2.18035934]
[1740118744138,1.52918493,653.2,652.2,2.18035934]
[1740118744334,1.52918493,653.2,652.21,2.18035934]
[1740118744535,1.52918493,653.2,652.22,2.18035934]
[1740118744738,1.52918493,653.2,652.23,2.18035934]
[1740118744938,1.52918493,653.2,652.24,2.18035934]
[1740118745239,1.52918493,653.2,652.25,2.18035934]
[1740118745440,1.52918493,653.2,652.26,2.18035934]
[1740118745633,1.52918493,653.2,652.27,2.18035934]
[1740118745834,1.52918493,653.2,652.28,2.18035934]
[1740118746134,1.52918493,653.2,652.29,5.20460894]
[1740118746441,1.52918493,653.2,652.3,2.18035934]
[1740118746637,1.52918493,653.2,652.31,2.18035934]
[1740118746842,1.52918493,653.2,652.32,2.18035934]
[1740118747143,1.52918493,653.2,652.29,3.0242496]
[1740118747542,1.52918493,653.2,652.33,3.0242496]
[1740118747837,1.52918493,653.2,652.34,2.1797722]
[1740118748041,1.52918493,653.2,652.33,3.0242496]
[1740118748042,1.52918493,653.2,652.35,2.1797722]
[1740118748340,1.52918493,653.2,652.36,2.1797722]
[1740118748538,1.52918493,653.2,652.37,2.1797722]
[1740118748741,1.52918493,653.2,652.38,2.1797722]
[1740118748946,1.52918493,653.2,652.39,2.1797722]
[1740118749145,1.52918493,653.2,652.4,2.1797722]
[1740118749341,1.52918493,653.2,652.41,2.1797722]
[1740118749538,1.52918493,653.2,652.42,2.1797722]
[1740118749742,1.52918493,653.2,652.38,3.0242496]
[1740118750041,1.52918493,653.2,652.39,2.17829905]
[1740118750238,1.52918493,653.2,652.4,2.17829905]
[1740118750445,1.52918493,653.2,652.41,2.17829905]
[1740118750641,1.52918493,653.2,652.42,2.17829905]
[1740118750945,1.52918493,653.2,652.43,2.17829905]
[1740118751140,1.52918493,653.2,652.22,1.14763846]
[1740118751141,0.30618493,653.2,652.44,5.20254865]
[1740118751344,0.30618493,653.2,652.45,2.17829905]
[1740118751547,0.30618493,653.2,652.44,3.0242496]
[1740118751548,0.30618493,653.2,652.46,2.17829905]
[1740118751746,0.30618493,653.2,652.47,2.17829905]
[1740118752047,0.30618493,653.2,652.48,5.20254865]
[1740118752249,0.30618493,653.2,652.49,2.17829905]
[1740118752444,0.30618493,653.2,652.5,2.17829905]
[1740118752750,0.30618493,653.2,652.48,3.0242496]
[1740118752942,0.30618493,653.2,652.49,2.17743188]
[1740118753146,0.30618493,653.2,652.5,5.20168148]
[1740118753348,0.30618493,653.2,652.5,3.0242496]
[1740118753952,0.30618493,653.2,652.51,2.17720624]
[1740118754152,0.30618493,653.2,652.5,3.0242496]
[1740118754452,0.30618493,653.2,652.51,5.20121929]
[1740118754647,0.30618493,653.2,652.51,3.0242496]
[1740118755647,0.30618493,653.2,652.26,1.14763846]
[1740118755851,0.30618493,653.2,652.27,2.17676751]
[1740118756050,0.30618493,653.2,652.28,2.17676751]
[1740118756247,0.30618493,653.2,652.29,2.17676751]
[1740118756452,0.30618493,653.2,652.3,5.19593995]
[1740118756752,0.30618493,653.2,652.31,2.17676751]
[1740118756952,0.30618493,653.2,652.32,2.17676751]
[1740118757149,0.30618493,653.2,652.33,2.17676751]
[1740118757353,0.30618493,653.2,652.34,2.17676751]
[1740118757553,1.65518493,653.2,652.35,2.17676751]
[1740118757753,1.65518493,653.2,652.36,5.19593995]
[1740118758054,1.65518493,653.2,652.37,2.17676751]
[1740118758255,1.65518493,653.2,652.38,2.17676751]
[1740118758456,1.65518493,653.2,652.39,2.17676751]
[1740118758657,1.65518493,653.2,652.4,2.17676751]
[1740118758854,1.65518493,653.2,652.41,2.17676751]
[1740118759051,1.65518493,653.2,652.42,2.17676751]
[1740118759352,1.65518493,653.2,652.43,2.17676751]
[1740118759656,1.65518493,653.2,652.44,2.17676751]
[1740118759858,1.65518493,653.2,652.45,2.17676751]
[1740118760157,1.65518493,653.2,652.44,3.01917244]
[1740118760358,1.65518493,653.2,652.45,2.1757462]
[1740118760560,1.65518493,653.2,652.44,3.01917244]
[1740118761058,1.65518493,653.2,652.27,1.14763846]
[1740118761253,1.65518493,653.2,652.28,2.17547472]
[1740118761455,1.65518493,653.2,652.29,2.17547472]
[1740118761659,1.65518493,653.2,652.3,5.19310983]
[1740118761860,1.65518493,653.2,652.31,2.17547472]
[1740118762060,1.65518493,653.2,652.32,2.17547472]
[1740118762261,1.65518493,653.2,652.33,2.17547472]
[1740118762462,1.65518493,653.2,652.34,2.17547472]
[1740118762661,1.65518493,653.2,652.35,2.17547472]
[1740118762962,1.65518493,653.2,652.36,2.17547472]
[1740118763164,1.65518493,653.2,652.37,2.17547472]
[1740118763362,1.65518493,653.2,652.38,2.17547472]
[1740118763563,1.65518493,653.2,652.36,3.01763511]
[1740118763756,1.65518493,653.2,652.37,2.17481515]
[1740118763959,1.65518493,653.2,652.38,2.17481515]
[1740118764162,1.65518493,653.2,652.36,3.01763511]
[1740118764363,1.65518493,653.2,652.37,5.19221018]
[1740118764563,1.65518493,653.2,652.38,2.17457507]
[1740118764763,1.65518493,653.2,652.37,3.01763511]
[1740118764963,1.65518493,653.2,652.38,2.17457688]
[1740118765166,1.65518493,653.2,652.37,3.01763511]
[1740118765558,1.65518493,653.2,652.21,1.14763846]
[1740118765759,1.65518493,653.2,652.22,2.17439505]
[1740118765958,1.65518493,653.2,652.23,2.17439505]
[1740118766265,1.65518493,653.2,652.23,3.01624199]
[1740118767567,1.65518493,653.2,652.18,1.14763846]
[1740118768070,1.65518493,653.2,652.08,1.14763846]
[1740118768366,1.65518493,653.2,652.09,2.17391582]
[1740118768566,1.65518493,653.2,652.1,2.17391582]
[1740118768765,1.65518493,653.2,652.11,5.18947931]
[1740118768964,1.65518493,653.2,652.12,2.17391582]
[1740118769260,1.65518493,653.2,652.13,2.17391582]
[1740118769464,1.65518493,653.2,652.11,3.01556349]
[1740118769663,1.65518493,653.2,652.12,2.17377117]
[1740118769860,1.65518493,653.2,652.13,2.17377117]
[1740118770060,1.65518493,653.2,652.11,3.01556349]
[1740118770061,1.65518493,653.2,652.14,2.17377117]
[1740118770265,1.65518493,653.2,652.15,2.17377117]
[1740118770465,1.65518493,653.2,652.11,3.01556349]
[1740118770666,1.65518493,653.2,652.12,2.17362987]
[1740118770861,1.65518493,653.2,652.12,3.01556349]
[1740118771068,1.65518493,653.2,652.13,2.17362846]
[1740118771263,1.65518493,653.2,652.12,3.01556349]
[1740118772471,1.65518493,653.2,652.08,1.14763846]
[1740118772870,1.65518493,653.2,652.09,5.18783558]
[1740118773071,1.65518493,653.2,652.1,2.17300368]
[1740118773371,1.65518493,653.2,652.11,2.17291951]
[1740118773572,1.65518493,653.2,652.12,2.17291951]
[1740118773768,1.65518493,653.2,652.13,2.17291951]
[1740118773973,1.65518493,653.2,652.14,2.17291951]
[1740118774165,1.65518493,653.2,652.09,3.01466887]
[1740118774166,1.65518493,653.2,652.15,2.17235261]
[1740118774370,1.65518493,653.2,652.09,3.01466887]
[1740118774568,1.65518493,653.2,652.1,5.1870273]
[1740118774770,1.65518493,653.2,652.15,1.14763846]
[1740118778376,1.65518493,653.2,652.05,1.14763846]
[1740118781173,1.65518493,653.2,652.06,1.14763846]
[1740118784379,1.65518493,653.2,652.09,1.14763846]
[1740118784782,1.65518493,653.2,652.1,2.17218513]
[1740118784982,1.65518493,653.2,652.09,1.14763846]
[1740118785288,1.65518493,653.2,652.11,3.01326354]
[1740118786785,1.65518493,653.2,652.11,4.160902]
[1740118786978,1.65518493,653.2,652.11,1.14763846]
[1740118792582,1.65518493,653.2,651.78,1.14763846]
[1740118792583,1.65518493,653.2,652.16,1.14763846]
[1740118794881,1.65518493,653.2,652.17,2.1720953]
[1740118795085,1.65518493,653.2,652.18,2.1720953]
[1740118795287,1.65518493,653.2,652.19,2.1720953]
[1740118795482,1.65518493,653.2,652.2,2.1720953]
[1740118795685,1.65518493,653.2,652.17,3.01323894]
[1740118795686,1.65518493,653.2,652.21,3.31973376]
[1740118795888,1.65518493,653.2,652.22,2.1720953]
[1740118796084,1.65518493,653.2,652.23,2.1720953]
[1740118796391,1.65518493,653.2,652.24,2.1720953]
[1740118796586,1.65518493,653.2,652.25,2.1720953]
[1740118796786,1.65518493,653.2,652.26,2.1720953]
[1740118796990,1.65518493,653.2,652.27,2.1720953]
[1740118797188,1.65518493,653.2,652.28,2.1720953]
[1740118797388,1.65518493,653.2,652.24,3.01323894]
[1740118797389,1.65518493,653.2,652.29,2.1720953]
[1740118797690,1.65518493,653.2,652.3,2.1720953]
[1740118797990,1.65518493,653.2,652.31,5.18533424]
[1740118798192,1.65518493,653.2,652.38,1.14763846]
[1740118798392,1.65518493,653.2,652.39,2.1720953]
[1740118798691,0.30618493,653.2,652.4,2.1720953]
[1740118798891,0.30618493,653.2,652.41,2.1720953]
[1740118799191,0.30618493,653.2,652.42,2.1720953]
[1740118799392,0.30618493,653.2,652.43,2.1720953]
[1740118799586,0.30618493,653.2,652.44,2.1720953]
[1740118799789,0.30618493,653.2,652.45,2.1720953]
[1740118799989,0.30618493,653.2,652.46,2.1720953]
[1740118800190,0.30618493,653.2,652.47,2.1720953]
[1740118800392,0.30618493,653.2,652.48,2.1720953]
[1740118800592,0.30618493,653.2,652.49,2.1720953]
[1740118800793,0.30618493,653.2,652.5,2.1720953]
[1740118800993,0.30618493,653.2,652.51,2.1720953]
[1740118801292,0.30618493,653.2,652.52,2.1720953]
[1740118801493,0.30618493,653.2,652.47,3.01323894]
[1740118801696,0.30618493,653.2,652.48,2.17335479]
[1740118801995,0.30618493,653.2,652.49,5.18659373]
[1740118802195,0.30618493,653.2,652.5,2.17335479]
[1740118802394,0.30618493,653.2,652.51,2.17335479]
[1740118802594,0.30618493,653.2,652.52,2.17335479]
[1740118802791,0.30618493,653.2,652.53,2.17335479]
[1740118802995,0.30618493,653.2,652.54,2.17335479]
[1740118803191,0.30618493,653.2,652.55,2.17335479]
[1740118803498,0.30618493,653.2,652.56,5.18659373]
[1740118803697,0.30618493,653.2,652.57,2.17335479]
[1740118803896,0.30618493,653.2,652.58,2.17335479]
[1740118804097,0.30618493,653.2,652.59,2.17335479]
[1740118804296,0.30618493,653.2,652.6,2.17335479]
[1740118804497,0.30618493,653.2,652.61,2.17335479]
[1740118804697,0.30618493,653.2,652.62,2.17335479]
[1740118804900,0.30618493,653.2,652.63,2.17335479]
[1740118805099,0.30618493,653.2,652.6,3.01323894]
[1740118805299,0.30618493,653.2,652.61,2.17449424]
[1740118805500,0.30618493,653.2,652.62,2.17449424]
[1740118805799,0.30618493,653.2,652.63,5.18773318]
[1740118806000,0.30618493,653.2,652.63,3.01323894]
[1740118806195,0.30618493,653.2,652.64,2.17475074]
[1740118806396,0.30618493,653.2,652.63,3.01323894]
[1740118806799,0.30618493,653.2,652.64,2.17475587]
[1740118807100,0.30618493,653.2,652.63,3.01323894]
[1740118807300,0.30618493,653.2,652.64,2.17502587]
[1740118807500,0.30618493,653.2,652.63,3.01323894]
[1740118807697,0.30618493,653.2,652.64,5.18826476]
[1740118807897,0.30618493,653.2,652.65,2.17502389]
[1740118808095,0.30618493,653.2,652.64,3.01323894]
[1740118808096,0.30618493,653.2,652.66,2.17502389]
[1740118808299,0.30618493,653.2,652.67,2.17502389]
[1740118808498,0.30618493,653.2,652.64,3.01323894]
[1740118808704,0.30618493,653.2,652.65,2.1750293]
[1740118809003,0.30618493,653.2,652.66,2.1750293]
[1740118809203,0.30618493,653.2,652.67,2.1750293]
[1740118809501,0.30618493,653.2,652.66,3.01323894]
[1740118809804,0.30618493,653.2,652.67,2.17505361]
[1740118810004,0.30618493,653.2,652.66,3.01323894]
[1740118810304,0.30618493,653.2,652.67,2.17509303]
[1740118810505,0.30618493,653.2,652.66,3.01323894]
[1740118810705,0.30618493,653.2,652.67,5.18832444]
[1740118810905,0.30618493,653.2,652.67,3.01323894]
[1740118812002,0.30618493,653.2,652.68,3.01323894]
[1740118813500,0.30618493,653.2,652.52,1.14763846]
[1740118813700,0.30618493,653.2,652.53,2.1755896]
[1740118813899,0.30618493,653.2,652.54,2.1755896]
[1740118814100,0.30618493,653.2,652.55,2.1755896]
[1740118814305,0.30618493,653.2,652.56,2.1755896]
[1740118814506,0.30618493,653.2,652.57,2.1755896]
[1740118814707,0.30618493,653.2,652.58,2.1755896]
[1740118814901,0.30618493,653.2,652.59,2.1755896]
[1740118815107,0.30618493,653.2,652.6,2.1755896]
[1740118815306,0.30618493,653.2,652.61,5.19363435]
[1740118815516,0.30618493,653.2,652.62,2.1755896]
[1740118815813,0.30618493,653.2,652.63,2.1755896]
[1740118816013,0.30618493,653.2,652.64,2.1755896]
[1740118816215,0.30618493,653.2,652.65,2.1755896]
[1740118816515,0.30618493,653.2,652.66,5.19363435]
[1740118816709,0.30618493,653.2,652.67,2.1755896]
[1740118816915,0.30618493,653.2,652.66,3.01804475]
[1740118818514,0.30618493,653.2,652.47,1.14763846]
[1740118818716,0.30618493,653.2,652.48,2.17651009]
[1740118818911,0.30618493,653.2,652.49,2.17651009]
[1740118819114,0.30618493,653.2,652.5,2.17651009]
[1740118819313,0.30618493,653.2,652.51,2.17651009]
[1740118819517,0.30618493,653.2,652.52,2.17651009]
[1740118819718,0.30618493,653.2,652.53,2.17651009]
[1740118819915,0.30618493,653.2,652.5,3.01936358]
[1740118820217,0.30618493,653.2,652.51,2.17671861]
[1740118820517,0.30618493,653.2,652.52,2.17696155]
[1740118820712,0.30618493,653.2,652.53,2.17696155]
[1740118820914,0.30618493,653.2,652.52,3.01936358]
[1740118821117,0.30618493,653.2,652.53,2.1770608]
[1740118821317,0.30618493,653.2,652.52,3.01936358]
[1740118821516,0.30618493,653.2,652.53,2.1770608]
[1740118821717,0.30618493,653.2,652.52,3.01936358]
[1740118822414,0.30618493,653.2,652.53,3.01936358]
[1740118823514,0.30618493,653.2,652.5,1.14763846]
[1740118823919,0.30618493,653.2,652.51,3.02039558]
[1740118825316,0.30618493,653.2,652.52,3.02039558]
[1740118826618,0.30618493,653.2,652.53,2.17756079]
[1740118826822,0.30618493,653.2,652.54,2.17756079]
[1740118827025,0.30618493,653.2,652.55,2.17756079]
[1740118827323,0.30618493,653.2,652.56,2.17756079]
[1740118827524,0.30618493,653.2,652.57,2.17756079]
[1740118827723,0.30618493,653.2,652.58,2.17756079]
[1740118827924,0.30618493,653.2,652.59,2.17756079]
[1740118828126,0.30618493,653.2,652.6,2.17756079]
[1740118828323,0.30618493,653.2,652.61,2.17756079]
[1740118828624,0.30618493,653.2,652.62,5.19795637]
[1740118828819,0.30618493,653.2,652.62,3.02039558]
[1740118829820,0.30618493,653.2,652.53,1.14763846]
[1740118832525,0.30618493,653.2,652.27,1.14763846]
[1740118835832,0.30618493,653.2,652.26,1.14763846]
[1740118838234,0.30618493,653.2,652.27,3.02227347]
[1740118838633,0.30618493,653.2,652.29,1.14763846]
[1740118838831,0.30618493,653.2,652.3,2.17867026]
[1740118839031,0.30618493,653.2,652.31,2.17867026]
[1740118839232,0.30618493,653.2,652.32,2.17867026]
[1740118839537,0.30618493,653.2,652.29,1.14763846]
[1740118840237,0.30618493,653.2,652.3,3.0222176]
[1740118841038,0.30618493,653.2,652.32,1.14763846]
[1740118843740,0.30618493,653.2,652.35,1.14763846]
[1740118846836,0.30618493,653.2,652.36,2.17783213]
[1740118847035,0.30618493,653.2,652.37,2.17783213]
[1740118847238,0.30618493,653.2,652.38,2.17783213]
[1740118847436,0.30618493,653.2,652.39,2.17783213]
[1740118847738,0.30618493,653.2,652.4,2.17783213]
[1740118847937,0.30618493,653.2,652.41,2.17783213]
[1740118848135,0.30618493,653.2,652.38,3.02065291]
[1740118848341,0.30618493,653.2,652.39,2.17707379]
[1740118848542,0.30618493,653.2,652.4,2.17707379]
[1740118848841,0.30618493,653.2,652.38,3.02065291]
[1740118848842,0.30618493,653.2,652.41,2.17707379]
[1740118849142,0.30618493,653.2,652.42,2.17707504]
[1740118849335,0.30618493,653.2,652.43,2.17707504]
[1740118849538,0.30618493,653.2,652.44,2.17707504]
[1740118849737,0.30618493,653.2,652.45,2.17707504]
[1740118849942,0.30618493,653.2,652.46,2.17707504]
[1740118850242,0.30618493,653.2,652.47,2.17707504]
[1740118850437,0.30618493,653.2,652.48,2.17707504]
[1740118850643,0.30618493,653.2,652.49,2.17707504]
[1740118850839,0.30618493,653.2,652.5,2.17707504]
[1740118851039,0.30618493,653.2,652.51,2.17707504]
[1740118851242,0.30618493,653.2,652.52,2.17707504]
[1740118851443,0.30618493,653.2,652.53,5.19772795]
[1740118851639,0.30618493,653.2,652.54,2.17549671]
[1740118851844,0.30618493,653.2,652.55,2.17549671]
[1740118852044,0.30618493,653.2,652.53,3.02065291]
[1740118852346,0.30618493,653.2,652.54,2.17497237]
[1740118852543,0.30618493,653.2,652.55,2.17497237]
[1740118852739,0.30618493,653.2,652.56,2.17497237]
[1740118852944,0.30618493,653.2,652.57,2.17497237]
[1740118853136,0.30618493,653.2,652.56,3.02065291]
[1740118853539,0.30618493,653.2,652.57,2.17471814]
[1740118853739,0.30618493,653.2,652.56,3.02065291]
[1740118853943,0.30618493,653.2,652.57,5.19534719]
[1740118854144,0.30618493,653.2,652.57,3.02065291]
[1740118855344,0.30618493,653.2,652.44,1.14763846]
[1740118855545,0.30618493,653.2,652.45,2.17425922]
[1740118855746,0.30618493,653.2,652.46,2.17425922]
[1740118856044,0.30618493,653.2,652.47,5.19073241]
[1740118856245,0.30618493,653.2,652.48,2.17425922]
[1740118856446,0.30618493,653.2,652.49,2.17425922]
[1740118856650,0.30618493,653.2,652.5,2.17425922]
[1740118856843,0.30618493,653.2,652.51,2.17425922]
[1740118857047,0.30618493,653.2,652.52,2.17425922]
[1740118857244,0.30618493,653.2,652.53,2.17425922]
[1740118857440,0.30618493,653.2,652.54,2.17425922]
[1740118857644,0.30618493,653.2,652.52,3.01647319]
[1740118857847,0.30618493,653.2,652.53,2.17378839]
[1740118858140,0.30618493,653.2,652.54,2.17378839]
[1740118858339,0.30618493,653.2,652.52,3.01647319]
[1740118858543,0.30618493,653.2,652.53,2.17427138]
[1740118858846,0.30618493,653.2,652.54,2.17427138]
[1740118859047,0.30618493,653.2,652.55,2.17424182]
[1740118859248,0.30618493,653.2,652.56,2.17424182]
[1740118859542,0.30618493,653.2,652.57,2.17424182]
[1740118859746,0.30618493,653.2,652.58,2.17424182]
[1740118859941,0.30618493,653.2,652.59,2.17424182]
[1740118860147,0.30618493,653.2,652.6,2.17424182]
[1740118860346,0.30618493,653.2,652.61,2.17424182]
[1740118860547,0.30618493,653.2,652.62,2.17424182]
[1740118860743,0.30618493,653.2,652.63,2.17424182]
[1740118861048,0.30618493,653.2,652.64,2.17424182]
[1740118861247,0.30618493,653.2,652.65,2.17424182]
[1740118861448,0.30618493,653.2,652.66,2.17424182]
[1740118861749,0.30618493,653.2,652.67,2.17424182]
[1740118862042,0.30618493,653.2,652.68,2.17424182]
[1740118862246,0.30618493,653.2,652.69,2.17424182]
[1740118862447,0.30618493,653.2,652.7,2.17424182]
[1740118862645,0.30618493,653.2,652.71,2.17424182]
[1740118862847,0.30618493,653.2,652.7,3.01647319]
[1740118862848,0.30618493,653.2,652.72,2.17424182]
[1740118863048,0.30618493,653.2,652.7,3.01647319]
[1740118863249,0.30618493,653.2,652.71,2.17287909]
[1740118863444,0.30618493,653.2,652.7,3.01647319]
[1740118863647,0.30618493,653.2,652.71,2.17297444]
[1740118863846,0.30618493,653.2,652.7,3.01647319]
[1740118864449,0.30618493,653.2,652.44,1.14763846]
[1740118864647,0.30618493,653.2,652.49,1.14763846]
[1740118864852,0.30618493,653.2,652.5,2.17323355]
[1740118865048,0.30618493,653.2,652.51,2.17323355]
[1740118865249,0.30618493,653.2,652.52,2.17323355]
[1740118865449,0.30618493,653.2,652.53,2.17323355]
[1740118865646,0.30618493,653.2,652.54,2.17323355]
[1740118865849,0.30618493,653.2,652.55,2.17323355]
[1740118866046,0.30618493,653.2,652.56,2.17323355]
[1740118866251,0.30618493,653.2,652.57,2.17323355]
[1740118866452,0.30618493,653.2,652.58,2.17323355]
[1740118866655,0.30618493,653.2,652.57,3.0149971]
[1740118866952,0.30618493,653.2,652.58,2.17381501]
[1740118867152,0.30618493,653.2,652.59,2.1737905]
[1740118867454,0.30618493,653.2,652.6,2.17377343]
[1740118867651,0.30618493,653.2,652.61,2.17373734]
[1740118867853,0.30618493,653.2,652.62,2.17373734]
[1740118868052,0.30618493,653.2,652.63,2.17373734]
[1740118868253,0.30618493,653.2,652.57,3.0149971]
[1740118868449,0.30618493,653.2,652.58,5.18870019]
[1740118868653,0.30618493,653.2,652.59,2.17370309]
[1740118868847,0.30618493,653.2,652.6,2.17370309]
[1740118869046,0.30618493,653.2,652.61,2.17370309]
[1740118869353,0.30618493,653.2,652.58,3.0149971]
[1740118869554,0.30618493,653.2,652.41,1.14763846]
[1740118869855,0.30618493,653.2,652.42,2.17320909]
[1740118870153,0.30618493,653.2,652.44,1.14763846]
[1740118870349,0.30618493,653.2,652.45,2.17303881]
[1740118870554,0.30618493,653.2,652.44,1.14763846]
[1740118872251,0.30618493,653.2,652.39,1.14763846]
[1740118872452,0.30618493,653.2,652.4,5.18781274]
[1740118872648,0.30618493,653.2,652.4,3.0147704]
[1740118874047,0.30618493,653.2,652.39,1.14763846]
[1740118875157,0.30618493,653.2,652.4,3.01501561]
[1740118876856,0.30618493,653.2,652.37,1.14763846]
[1740118878359,0.30618493,653.2,652.42,1.14763846]
[1740118879150,0.30618493,653.2,652.43,2.17335079]
[1740118879357,0.30618493,653.2,652.44,2.17335079]
[1740118879661,0.30618493,653.2,652.45,2.17335079]
[1740118879852,0.30618493,653.2,652.43,3.01513112]
[1740118880060,0.30618493,653.2,652.44,2.17348866]
[1740118880259,0.30618493,653.2,652.45,2.17348866]
[1740118880454,0.30618493,653.2,652.46,2.17348866]
[1740118880653,0.30618493,653.2,652.43,3.01513112]
[1740118880856,0.30618493,653.2,652.44,2.17325596]
[1740118881052,0.30618493,653.2,652.45,2.17325596]
[1740118881257,0.30618493,653.2,652.43,3.01513112]
[1740118881453,0.30618493,653.2,652.44,5.18847154]
[1740118881657,0.30618493,653.2,652.45,2.17334042]
[1740118881858,0.30618493,653.2,652.44,3.01513112]
[1740118882260,0.30618493,653.2,652.47,1.14763846]
[1740118883453,0.30618493,653.2,652.48,2.17348408]
[1740118883657,0.30618493,653.2,652.47,1.14763846]
[1740118883658,0.30618493,653.2,652.49,2.17348408]
[1740118883853,0.30618493,653.2,652.49,3.01531236]
[1740118885161,0.30618493,653.2,652.5,1.14763846]
[1740118888170,0.30618493,653.2,652.49,1.14763846]
[1740118890965,0.30618493,653.2,652.44,1.14763846]
[1740118893069,0.30618493,653.2,652.45,5.19225775]
[1740118893275,0.30618493,653.2,652.46,2.17497348]
[1740118893477,0.30618493,653.2,652.47,2.17497348]
[1740118893778,0.30618493,653.2,652.48,2.17497348]
[1740118893971,0.30618493,653.2,652.49,2.17497348]
[1740118894172,0.30618493,653.2,652.5,2.17497348]
[1740118894371,0.30618493,653.2,652.51,2.17497348]
[1740118894575,0.30618493,653.2,652.52,2.17497348]
[1740118894774,0.30618493,653.2,652.43,1.14763846]
[1740118895173,0.30618493,653.2,652.44,3.01775856]
[1740118896779,0.30618493,653.2,652.45,3.01775856]
[1740118897881,0.30618493,653.2,652.43,1.14763846]
[1740118898080,0.30618493,653.2,652.44,3.01689972]
[1740118899281,0.30618493,653.2,652.28,1.14763846]
[1740118899477,0.30618493,653.2,652.29,5.19042697]
[1740118899682,0.30618493,653.2,652.3,2.17430432]
[1740118899981,0.30618493,653.2,652.31,2.17430432]
[1740118900181,0.30618493,653.2,652.29,3.01612265]
[1740118900382,0.30618493,653.2,652.3,2.17391494]
[1740118900575,0.30618493,653.2,652.31,2.17391494]
[1740118900779,0.30618493,653.2,652.0,1.14763846]
[1740118900780,0.30618493,653.2,652.32,5.19003759]
[1740118900976,0.30618493,653.2,652.33,2.17391494]
[1740118901285,0.30618493,653.2,652.34,2.17391494]
[1740118901582,0.30618493,653.2,652.35,2.17391494]
[1740118901782,0.30618493,653.2,652.32,3.01612265]
[1740118902082,0.30618493,653.2,652.33,2.17361278]
[1740118902384,0.30618493,653.2,652.34,5.18973543]
[1740118902576,0.30618493,653.2,652.35,2.17361278]
[1740118902779,0.30618493,653.2,652.36,2.17361278]
[1740118902981,0.30618493,653.2,652.34,3.01612265]
[1740118903181,0.30618493,653.2,652.35,2.17320662]
[1740118903378,0.30618493,653.2,652.34,3.01612265]
[1740118903579,0.30618493,653.2,652.35,2.17281046]
[1740118903779,0.30618493,653.2,652.35,3.01612265]
[1740118905287,0.30618493,653.2,652.36,2.17204243]
[1740118905488,0.30618493,653.2,652.37,2.17204243]
[1740118905686,0.30618493,653.2,652.36,3.01612265]
[1740118905883,0.30618493,653.2,652.37,2.17199642]
[1740118906084,0.30618493,653.2,652.36,3.01612265]
[1740118906884,0.30618493,653.2,652.11,1.14763846]
[1740118907092,0.30618493,653.2,652.12,2.17176686]
[1740118907291,0.30618493,653.2,652.13,5.18378985]
[1740118907591,0.30618493,653.2,652.14,2.17176686]
[1740118907790,0.30618493,653.2,652.15,2.17176686]
[1740118908091,0.30618493,653.2,652.13,3.01202299]
[1740118908092,0.30618493,653.2,652.16,2.17176686]
[1740118908291,0.30618493,653.2,652.17,2.17176686]
[1740118908495,0.30618493,653.2,652.18,2.17176686]
[1740118908692,0.30618493,653.2,652.19,2.17176686]
[1740118908992,0.30618493,653.2,652.2,5.18378985]
[1740118909193,0.30618493,653.2,652.21,2.17176686]
[1740118909392,0.30618493,653.2,652.22,2.17176686]
[1740118909589,0.30618493,653.2,652.2,3.01202299]
[1740118909991,0.30618493,653.2,652.21,2.17072603]
[1740118910192,0.30618493,653.2,652.22,2.17072603]
[1740118910490,0.30618493,653.2,652.23,2.17072603]
[1740118910692,0.30618493,653.2,652.24,2.17072603]
[1740118910892,0.30618493,653.2,652.25,2.17072603]
[1740118911193,0.30618493,653.2,652.26,2.17072603]
[1740118911392,0.30618493,653.2,652.21,3.01202299]
[1740118911393,0.30618493,653.2,652.27,2.17072603]
[1740118911694,0.30618493,653.2,652.28,2.17072603]
[1740118911896,0.30618493,653.2,652.29,2.17072603]
[1740118912088,0.30618493,653.2,652.3,3.01202299]
[1740118913695,0.30618493,653.2,652.08,1.14763846]
[1740118913895,0.30618493,653.2,652.09,2.17033813]
[1740118914089,0.30618493,653.2,652.1,2.17033813]
[1740118914288,0.30618493,653.2,652.15,1.14763846]
[1740118914491,0.30618493,653.2,652.16,2.17033813]
[1740118914691,0.30618493,653.2,652.17,2.17033813]
[1740118914894,0.30618493,653.2,652.18,2.17033813]
[1740118915093,0.30618493,653.2,652.15,1.14763846]
[1740118915094,0.30618493,653.2,652.19,2.17033813]
[1740118915296,0.30618493,653.2,652.2,2.17033813]
[1740118915491,0.30618493,653.2,652.21,2.17033813]
[1740118915790,0.30618493,653.2,652.22,2.17033813]
[1740118915994,0.30618493,653.2,652.23,2.17033813]
[1740118916191,0.30618493,653.2,652.24,2.17033813]
[1740118916497,0.30618493,653.2,652.25,2.17033813]
[1740118916691,0.30618493,653.2,652.26,2.17033813]
[1740118916887,0.30618493,653.2,652.27,2.17033813]
[1740118917094,0.30618493,653.2,652.28,2.17033813]
[1740118917287,0.30618493,653.2,652.23,3.01068801]
[1740118917494,0.30618493,653.2,652.29,3.01068801]
[1740118918491,0.30618493,653.2,652.3,2.17036504]
[1740118918696,0.30618493,653.2,652.31,2.17036504]
[1740118918996,0.30618493,653.2,652.32,2.17036504]
[1740118919196,0.30618493,653.2,652.33,2.17036504]